bitfinex/quotes_ETHUSD_20240731
["timestamp","ask_amount","ask_price","bid_price","bid_amount"]
[1722469000741,3.08813,3238.2,3237.8,2.3356]
[1722469001522,3.08828,3238.1,3237.8,2.3356]
[1722469001687,3.08828,3238.1,3236.2,3.14376162]
[1722469001688,3.0888,3237.5,3237.4,2.474]
[1722469001882,3.08865,3237.7,3237.4,2.474]
[1722469002118,3.15236133,3237.6,3237.4,2.474]
[1722469002282,3.0888,3237.5,3237.4,2.474]
[1722469002486,3.15239464,3237.5,3237.4,2.474]
[1722469002686,3.15239464,3237.5,3236.5,1.9357]
[1722469002687,3.08933,3237.0,3236.5,2.474]
[1722469002886,0.06304278,3236.9,3236.5,2.474]
[1722469003106,4.05297698,3237.2,3236.5,2.474]
[1722469003107,3.08921,3237.1,3236.5,2.474]
[1722469003386,3.08946,3236.9,3236.5,2.474]
[1722469003592,0.06301737,3236.8,3236.5,2.474]
[1722469003810,0.06301737,3236.8,3236.5,3.030386]
[1722469004419,3.08962,3236.7,3236.5,2.474]
[1722469004921,0.06276054,3236.6,3236.5,2.474]
[1722469005101,4.05234851,3237.3,3236.5,5.56375]
[1722469005296,3.08925,3237.1,3236.5,5.56375]
[1722469005526,0.06291252,3237.0,3236.5,5.56375]
[1722469005709,0.06291252,3237.0,3236.5,6.120125]
[1722469006583,3.08966,3236.6,3236.5,2.474]
[1722469006785,3.08966,3236.6,3236.1,5.40237]
[1722469006786,0.06270714,3236.6,3236.1,5.40237]
[1722469007017,3.08952,3236.8,3236.2,0.06179415]
[1722469007220,0.06265578,3236.5,3236.2,3.15182415]
[1722469007530,0.06260442,3236.4,3236.2,3.09003]
[1722469007725,3.08952,3236.8,3236.1,2.3123]
[1722469007924,0.06275849,3236.7,3236.3,3.08994]
[1722469008132,3.08952,3236.8,3236.3,3.08994]
[1722469008423,0.06275849,3236.7,3236.1,5.942598]
[1722469008731,3.08956,3236.7,3236.1,5.942598]
[1722469008942,0.06137047,3236.6,3236.2,3.09003]
[1722469009250,3.08952,3236.8,3236.2,3.09003]
[1722469009417,3.08952,3236.8,3236.2,3.6842878]
[1722469009418,0.06131912,3236.5,3236.2,3.6842878]
[1722469009762,0.06126776,3236.4,3236.2,3.6842878]
[1722469009905,3.0893,3237.0,3236.4,3.08985]
[1722469010113,0.06152452,3236.9,3236.4,3.08985]
[1722469010332,6.17904,3236.8,3236.2,3.6842878]
[1722469010611,0.06142182,3236.7,3236.2,3.6842878]
[1722469010823,0.06142182,3236.7,3236.2,6.7742678]
[1722469011046,0.06142182,3236.7,3236.2,3.6842378]
[1722469011244,0.06142182,3236.7,3236.3,3.08993]
[1722469011554,3.08949,3236.8,3236.3,3.08993]
[1722469011742,0.06142182,3236.7,3236.3,3.08993]
[1722469011941,3.08949,3236.8,3236.3,3.08993]
[1722469012243,0.06142182,3236.7,3236.3,3.08993]
[1722469012650,3.08949,3236.8,3236.2,3.6842378]
[1722469012848,3.15103047,3236.6,3236.1,2.3123]
[1722469013032,0.06142182,3236.7,3236.1,2.3123]
[1722469013237,3.15106912,3236.5,3236.1,2.3123]
[1722469013416,3.15103047,3236.6,3236.1,2.3123]
[1722469013618,0.06118062,3236.4,3236.1,2.3123]
[1722469013852,0.06123198,3236.5,3236.1,2.3123]
[1722469014054,0.06112926,3236.3,3236.1,5.40243]
[1722469014247,3.08966,3236.6,3236.1,5.40243]
[1722469014781,0.06123198,3236.5,3236.1,5.40237]
[1722469015078,2.64,3236.6,3235.5,3.09067]
[1722469015225,2.64,3236.6,3235.4,2.3444]
[1722469015226,3.09034,3235.9,3235.4,2.3444]
[1722469015627,3.09034,3235.9,3235.1,3.09104]
[1722469015628,3.09053,3235.7,3235.1,3.09102]
[1722469016064,3.09053,3235.7,3235.0,2.3456]
[1722469016065,0.06034422,3235.6,3235.2,3.09099]
[1722469016449,3.09044,3235.8,3235.2,3.09099]
[1722469016674,0.0601621,3235.5,3235.2,3.09099]
[1722469016981,5.72967,3236.6,3235.3,6.24360972]
[1722469016982,0.06003121,3235.4,3235.3,6.24360972]
[1722469017182,3.09004,3236.2,3235.5,3.09063]
[1722469017334,0.06039087,3236.1,3235.5,3.09063]
[1722469017537,0.06039087,3236.1,3235.3,3.09086]
[1722469017872,3.09031,3236.0,3235.3,3.09086]
[1722469018374,3.15062813,3235.9,3235.3,3.09086]
[1722469018874,3.0905,3235.8,3235.0,2.3456]
[1722469019080,3.15063813,3235.9,3235.3,3.09087]
[1722469019274,0.06019307,3235.7,3235.3,3.09087]
[1722469019574,0.06005446,3235.6,3235.5,3.09063]
[1722469019776,3.08948,3236.8,3235.5,3.09063]
[1722469019777,3.0896,3236.7,3235.9,5.58974]
[1722469019945,0.308911,3237.1,3235.9,5.58974]
[1722469019946,0.060188,3236.6,3236.1,3.09006]
[1722469020139,3.398131,3237.1,3236.3,3.08992]
[1722469020348,3.08938,3236.9,3236.3,3.08992]
[1722469020544,3.14575382,3236.8,3236.1,3.09012]
[1722469020743,0.05626382,3236.8,3236.2,0.0617945]
[1722469020943,3.08909,3237.2,3236.5,3.08969]
[1722469021138,0.05636649,3237.1,3236.5,3.08969]
[1722469021558,3.08929,3237.0,3236.4,3.08984]
[1722469021766,0.0562638,3236.9,3235.9,5.5898]
[1722469022004,5.72893,3237.4,3236.5,0.2]
[1722469022005,3.08967,3236.6,3236.5,0.2]
[1722469022170,6.85344566,3236.6,3236.5,0.2]
[1722469022496,3.76377566,3236.6,3236.5,0.2]
[1722469022998,6.85343566,3236.6,3236.5,0.2]
[1722469023197,3.76376566,3236.6,3236.5,0.2]
[1722469024167,0.05618666,3236.6,3236.5,0.2]
[1722469024368,2.64,3237.0,3236.5,0.2]
[1722469024369,3.08938,3236.9,3236.5,0.2]
[1722469024699,0.05650498,3236.8,3236.5,0.2]
[1722469024903,3.08963,3236.7,3236.5,0.2]
[1722469025413,0.05632521,3236.6,3236.5,0.2]
[1722469025575,3.08947,3236.8,3236.5,0.2]
[1722469025762,0.05632521,3236.6,3236.5,0.2]
[1722469025961,3.08947,3236.8,3236.5,0.2]
[1722469026268,0.05441828,3236.7,3236.5,0.4]
[1722469026590,3.08922,3237.1,3236.5,0.4]
[1722469026785,0.36344296,3237.0,3236.5,0.4]
[1722469027099,3.45272296,3237.0,3236.5,0.4]
[1722469027473,3.08938,3236.9,3236.5,0.4]
[1722469027697,0.36344296,3237.0,3236.5,0.4]
[1722469027880,0.05446967,3236.8,3236.5,3.48975]
[1722469028206,0.05441831,3236.7,3236.5,3.48975]
[1722469028386,0.05441831,3236.7,3236.5,0.4]
[1722469028587,3.08947,3236.8,3236.5,0.4]
[1722469028810,0.05441831,3236.7,3236.5,0.4]
[1722469029110,3.08947,3236.8,3236.5,0.4]
[1722469029290,0.05436696,3236.6,3236.5,0.4]
[1722469029483,3.08929,3237.0,3236.5,0.4]
[1722469029686,0.05436696,3236.6,3236.5,0.4]
[1722469029994,3.08951,3236.8,3236.5,0.4]
[1722469030174,3.08951,3236.8,3236.5,0.6]
[1722469030175,2.64,3236.6,3236.5,0.6]
[1722469030375,11.87368696,3236.6,3236.5,0.6]
[1722469030576,8.87368696,3236.6,3236.5,0.6]
[1722469030773,13.31879666,3236.6,3236.5,0.6]
[1722469034483,13.31879666,3236.6,3236.5,0.8]
[1722469035234,3.05436696,3236.6,3236.5,0.8]
[1722469035421,0.05436696,3236.6,3236.5,0.8]
[1722469035632,3.08945,3236.9,3236.5,0.8]
[1722469035784,0.05378133,3236.6,3236.5,0.8]
[1722469035984,3.08948,3236.8,3236.5,0.8]
[1722469036332,3.08966,3236.6,3236.5,0.8]
[1722469036529,0.05383269,3236.7,3236.5,0.8]
[1722469036693,0.05383006,3236.6,3236.5,0.8]
[1722469037088,3.08948,3236.8,3236.5,0.8]
[1722469037294,0.05383006,3236.6,3236.5,0.8]
[1722469037526,3.08966,3236.6,3236.5,0.8]
[1722469037739,3.14349006,3236.6,3236.5,0.8]
[1722469038096,6.23315006,3236.6,3236.5,0.8]
[1722469039009,8.87315006,3236.6,3236.5,0.8]
[1722469039211,11.35355006,3236.6,3236.5,0.8]
[1722469039930,14.35355006,3236.6,3236.5,0.8]
[1722469040258,15.31513189,3236.6,3236.5,0.8]
[1722469040425,16.32203602,3236.6,3236.5,0.8]
[1722469041437,17.60215376,3236.6,3236.5,0.8]
[1722469041799,20.69181376,3236.6,3236.5,0.8]
[1722469042002,19.41169602,3236.6,3236.5,0.8]
[1722469042332,21.01475184,3236.6,3236.5,0.8]
[1722469044039,17.92647927,3236.6,3236.5,0.8]
[1722469044226,13.84163602,3236.6,3236.5,0.8]
[1722469044537,15.44695113,3236.6,3236.5,0.8]
[1722469044839,13.84163602,3236.6,3236.5,0.8]
[1722469046150,17.47061882,3236.6,3236.5,0.8]
[1722469046305,22.58005494,3236.6,3236.5,0.8]
[1722469047359,16.69195882,3236.6,3236.5,0.8]
[1722469047554,14.38095882,3236.6,3236.5,0.8]
[1722469047857,16.31098895,3236.6,3236.5,0.8]
[1722469048034,14.38095882,3236.6,3236.5,0.8]
[1722469049361,17.47061882,3236.6,3236.5,0.8]
[1722469049975,6.14349006,3236.6,3236.5,0.8]
[1722469050487,3.14349006,3236.6,3236.5,0.8]
[1722469050765,8.16404259,3236.6,3236.5,0.8]
[1722469051357,8.7033049,3236.6,3236.5,0.8]
[1722469051525,6.77241237,3236.6,3236.5,0.8]
[1722469051727,10.5725824,3236.6,3236.5,0.8]
[1722469052050,13.6622424,3236.6,3236.5,0.8]
[1722469052251,21.31749789,3236.6,3236.5,0.8]
[1722469053232,18.65648662,3236.6,3236.5,0.8]
[1722469054063,21.31732452,3236.6,3236.5,0.8]
[1722469055867,12.69212662,3236.6,3236.5,0.8]
[1722469056064,12.02495084,3236.6,3236.5,0.8]
[1722469056429,9.77241237,3236.6,3236.5,0.8]
[1722469058080,12.024194,3236.6,3236.5,0.8]
[1722469058244,9.77241237,3236.6,3236.5,0.8]
[1722469058432,11.32466959,3236.6,3236.5,0.8]
[1722469059464,18.52162111,3236.6,3236.5,0.8]
[1722469060035,18.52166818,3236.6,3236.5,0.8]
[1722469060266,18.52152755,3236.6,3236.5,0.8]
[1722469060635,21.61118755,3236.6,3236.5,0.8]
[1722469060962,25.09417993,3236.6,3236.5,0.8]
[1722469061263,25.09417993,3236.6,3235.2,2.2556]
[1722469061264,3.09085,3235.4,3235.2,2.2556]
[1722469061472,3.1416925,3235.3,3235.2,2.2556]
[1722469062031,5.07198599,3235.3,3235.2,2.2556]
[1722469062567,3.1416925,3235.3,3235.2,2.2556]
[1722469064768,3.091,3235.2,3234.7,2.4753]
[1722469064955,0.96477322,3234.8,3234.7,3.031983]
[1722469065343,1.01530868,3234.8,3234.7,3.031983]
[1722469065535,0.05053546,3234.8,3234.7,3.031983]
[1722469065735,0.05053546,3234.8,3234.7,6.123453]
[1722469066039,0.96477322,3235.0,3234.7,6.123453]
[1722469066237,0.05046344,3234.9,3234.8,0.9214963]
[1722469066432,0.05046344,3234.9,3234.8,4.0128763]
[1722469066768,0.05046344,3234.9,3234.8,9.64137984]
[1722469067167,0.96477322,3235.2,3235.1,2.4753]
[1722469067546,0.05061767,3235.2,3234.8,3.3967963]
[1722469067867,0.96412759,3234.9,3234.8,3.3967963]
[1722469068166,0.05046344,3234.9,3234.8,3.3967963]
[1722469068933,0.05046344,3234.9,3234.8,6.4881763]
[1722469069689,0.96412759,3235.1,3234.9,3.09126]
[1722469069893,0.96412759,3235.1,3234.9,4.04921263]
[1722469070257,0.96412759,3235.1,3234.9,0.95795263]
[1722469071348,0.96412759,3235.1,3235.0,3.09119]
[1722469071540,0.96412759,3235.2,3235.0,3.09119]
[1722469071740,0.96412759,3235.3,3235.2,2.4021]
[1722469071942,1.28550345,3235.3,3235.2,2.4021]
[1722469072161,0.96418598,3235.3,3235.2,2.4021]
[1722469072437,1.28550345,3235.4,3235.2,2.4021]
[1722469072862,1.60727658,3235.3,3235.2,2.4021]
[1722469073074,1.60727658,3235.4,3235.2,2.4021]
[1722469073280,3.09065,3235.6,3235.2,2.4021]
[1722469073573,1.28597237,3235.3,3235.2,2.4021]
[1722469073809,1.28597237,3235.4,3235.2,2.4021]
[1722469073960,1.28597237,3235.4,3235.3,6.1818]
[1722469073961,0.96457207,3235.4,3235.3,6.1818]
[1722469074143,1.60727371,3235.7,3235.5,3.09071]
[1722469074144,0.96457207,3235.7,3235.5,3.09071]
[1722469074340,0.96460815,3235.6,3235.5,3.09071]
[1722469074579,0.96477511,3235.6,3235.5,5.982978]
[1722469074874,1.28597237,3235.7,3235.5,5.982978]
[1722469074875,0.96475964,3235.7,3235.5,5.982978]
[1722469075176,0.96475964,3235.6,3235.5,2.892358]
[1722469075381,11.86840402,3235.9,3235.2,3.09099]
[1722469075382,4.69857402,3235.7,3235.2,3.09099]
[1722469075679,0.96482836,3235.3,3235.2,3.09099]
[1722469075880,3.09043,3235.8,3235.2,3.09099]
[1722469076177,0.96487334,3235.3,3235.1,5.51748]
[1722469076477,1.28649779,3235.4,3235.1,3.287272]
[1722469076478,0.96487334,3235.2,3235.1,3.287272]
[1722469076658,0.96487334,3235.3,3235.1,6.378362]
[1722469076851,1.28649779,3235.4,3235.1,2.4264]
[1722469076852,0.96487334,3235.2,3235.1,2.4264]
[1722469077053,0.96487334,3235.2,3234.9,3.0912]
[1722469077284,0.048669,3235.1,3234.9,3.0912]
[1722469077643,0.048669,3235.1,3234.8,2.256]
[1722469077841,0.048669,3235.1,3234.8,8.34736]
[1722469078080,0.048669,3235.1,3234.8,6.399875]
[1722469078602,1.01354234,3235.1,3234.8,3.399875]
[1722469078810,0.96487334,3235.0,3234.8,2.256]
[1722469079093,0.04856617,3234.9,3234.8,2.256]
[1722469079447,0.04856617,3234.9,3234.8,5.34738]
[1722469080050,0.96487334,3235.1,3234.8,5.34738]
[1722469080357,0.04861759,3235.0,3234.9,3.09122]
[1722469080555,0.04861759,3235.0,3234.9,6.24431938]
[1722469080766,0.04861759,3235.0,3234.9,8.529]
[1722469080970,0.96452064,3235.4,3235.2,3.09097]
[1722469081205,1.28602753,3235.3,3235.0,3.09117]
[1722469081503,1.28602753,3235.3,3235.1,3.09109]
[1722469081684,0.96434468,3235.2,3235.1,3.09109]
[1722469082052,0.96434468,3235.3,3235.2,3.09099]
[1722469082652,1.28602753,3235.4,3235.2,3.09099]
[1722469083102,0.96460411,3235.3,3235.2,3.09099]
[1722469083255,1.28602753,3235.5,3235.3,3.0909]
[1722469083256,0.96460411,3235.4,3235.3,3.0909]
[1722469084208,0.96460411,3235.4,3235.2,0.71193581]
[1722469084388,1.28602753,3235.3,3235.1,3.09109]
[1722469084771,0.96479476,3235.2,3235.1,3.09109]
[1722469084971,0.96479476,3235.4,3235.2,3.09099]
[1722469085169,1.28602753,3235.5,3235.2,3.09099]
[1722469085170,0.96479476,3235.3,3235.2,3.09099]
[1722469085382,0.96479476,3235.4,3235.2,3.09093]
[1722469085587,0.96479476,3235.5,3235.4,6.1816]
[1722469085870,1.28602753,3235.6,3235.3,2.49981448]
[1722469085871,0.96479476,3235.7,3235.6,3.09061]
[1722469086221,1.28602753,3235.8,3235.3,2.438]
[1722469086222,0.96482629,3235.8,3235.3,2.438]
[1722469086370,1.28602753,3235.9,3235.7,3.09052]
[1722469086564,1.28602753,3235.9,3235.8,3.09042]
[1722469087328,1.28602753,3235.9,3235.6,3.09055]
[1722469087329,1.60799127,3235.9,3235.6,3.09055]
[1722469087482,1.28526085,3235.7,3235.6,3.09055]
[1722469087683,0.04903347,3235.7,3235.6,3.09055]
[1722469088019,1.28527179,3235.8,3235.6,6.18108]
[1722469088316,0.04917295,3235.7,3235.6,3.09053]
[1722469088663,1.28527179,3235.8,3235.6,3.09053]
[1722469088869,0.04917295,3235.7,3235.6,3.09053]
[1722469089080,1.28527179,3235.8,3235.6,3.09053]
[1722469089281,0.04917295,3235.7,3235.6,3.09053]
[1722469089484,1.28527179,3235.8,3235.6,3.09053]
[1722469089741,0.04917295,3235.7,3235.6,3.09053]
[1722469089945,1.33444474,3235.7,3235.3,5.52888]
[1722469090241,0.96444909,3235.4,3235.3,5.52883]
[1722469090381,0.96444909,3235.4,3235.1,3.091]
[1722469090583,0.96444909,3235.4,3235.3,3.0909]
[1722469090584,1.01362978,3235.4,3235.3,3.0909]
[1722469091143,0.04918069,3235.4,3235.3,3.0909]
[1722469091799,0.04918069,3235.4,3234.3,2.4113]
[1722469091800,3.14004069,3235.4,3234.3,2.4113]
[1722469092159,0.96468367,3234.9,3234.6,3.09156]
[1722469092353,1.60780613,3235.2,3234.5,3.0916]
[1722469092354,1.2862449,3234.7,3234.5,3.0916]
[1722469092649,0.96449197,3234.8,3234.7,3.09147]
[1722469092878,1.2862449,3234.9,3234.7,3.09147]
[1722469093350,1.2862449,3234.8,3234.7,3.09147]
[1722469093649,1.2862449,3234.8,3234.4,3.09172]
[1722469093650,1.2862449,3234.9,3234.6,3.09156]
[1722469093853,0.96408057,3234.8,3234.6,3.09156]
[1722469094207,1.2862449,3234.8,3234.6,3.09156]
[1722469094404,0.96412477,3234.7,3234.6,3.09156]
[1722469094702,1.2862449,3234.8,3234.6,3.09156]
[1722469094905,0.96402733,3234.7,3234.6,3.09156]
[1722469096351,1.2862449,3234.8,3234.6,3.09156]
[1722469096751,1.60701838,3234.9,3234.2,3.2387393]
[1722469096752,4.69831838,3234.9,3234.2,3.2387393]
[1722469096956,0.96407413,3234.4,3234.3,3.09185]
[1722469097399,0.96406457,3234.4,3234.3,3.09185]
[1722469097604,0.96406457,3234.5,3234.4,3.09176]
[1722469098554,0.96406457,3234.6,3234.4,3.09176]
[1722469098760,1.28541942,3234.7,3234.5,3.09166]
[1722469099215,0.96390473,3234.6,3234.5,3.09166]
[1722469099943,1.28541942,3234.6,3234.5,3.09166]
[1722469100710,3.091,3235.2,3234.6,3.09157]
[1722469100711,0.9636884,3234.7,3234.6,3.09157]
[1722469101020,0.96366952,3234.7,3234.6,3.09157]
[1722469102138,0.96366952,3234.7,3234.4,3.09176]
[1722469102339,1.2848927,3234.6,3234.4,3.09176]
[1722469102753,0.96380466,3234.5,3234.4,3.09176]
[1722469104450,1.2848927,3234.6,3234.4,3.09176]
[1722469104741,1.2848927,3234.5,3234.2,3.2387693]
[1722469105047,1.60630789,3234.4,3234.2,0.1468493]
[1722469105244,4.69806789,3234.4,3234.2,0.1468493]
[1722469106142,1.28458376,3234.3,3234.2,0.1468493]
[1722469107244,1.33245661,3234.3,3234.2,0.1468493]
[1722469108318,0.04832965,3234.3,3234.2,0.1468493]
[1722469108854,1.33245661,3234.3,3234.2,0.1468493]
[1722469109054,0.04832965,3234.3,3234.2,0.1468493]
[1722469109231,1.33245661,3234.3,3234.2,0.1468493]
[1722469109556,0.04832965,3234.3,3234.2,0.1468493]
[1722469110481,4.69555377,3234.4,3234.2,0.1468493]
[1722469110763,0.04800817,3234.3,3234.2,0.1468493]
[1722469111138,1.33070358,3234.3,3234.2,0.1468493]
[1722469111342,0.04800817,3234.3,3234.2,0.1468493]
[1722469111730,1.33070358,3234.3,3234.2,0.1468493]
[1722469111959,0.04800817,3234.3,3234.2,0.1468493]
[1722469112150,1.00983333,3234.3,3234.2,0.1468493]
[1722469112348,0.04800817,3234.3,3234.2,0.1468493]
[1722469112723,1.00964419,3234.3,3234.2,0.1468493]
[1722469114860,0.04800817,3234.3,3234.2,0.1468493]
[1722469115245,0.04800817,3234.3,3234.2,5.6879993]
[1722469115434,0.96163602,3234.5,3234.2,5.74983212]
[1722469115769,0.04780233,3234.4,3234.3,3.09185]
[1722469116071,8.13163602,3235.0,3234.5,3.09164]
[1722469116373,0.0480852,3234.9,3234.7,3.09144]
[1722469116541,0.0480852,3234.9,3234.7,6.18283]
[1722469116739,0.0480852,3234.9,3234.7,3.09139]
[1722469116950,0.96163602,3235.1,3234.2,3.48023351]
[1722469116951,4.05272602,3235.1,3234.3,3.09181]
[1722469118110,3.92269541,3235.2,3234.2,2.5960493]
[1722469118111,0.04836545,3234.8,3234.2,2.5960493]
[1722469118253,4.05303602,3234.8,3234.2,2.5960493]
[1722469118588,1.01010174,3234.7,3234.2,2.5960493]
[1722469118761,1.01010174,3234.7,3234.2,5.6879693]
[1722469118959,4.10157174,3234.7,3234.2,2.5960493]
[1722469119266,3.09159,3234.6,3234.2,0.1468493]
[1722469119471,0.04839892,3234.5,3234.2,0.1468493]
[1722469119781,3.09151,3234.7,3234.2,0.1468493]
[1722469120083,3.09167,3234.5,3234.2,0.1468493]
[1722469120290,0.0483475,3234.4,3234.2,0.1468493]
[1722469120584,1.01046641,3234.4,3234.2,0.1468493]
[1722469122348,3.09185,3234.3,3234.2,0.1468493]
[1722469122801,3.14014608,3234.3,3234.2,0.1468493]
[1722469122950,1.01058729,3234.3,3234.2,0.1468493]
[1722469123147,4.10243729,3234.3,3234.2,0.1468493]
[1722469123353,3.14014608,3234.3,3234.2,0.1468493]
[1722469124352,4.42297129,3234.3,3234.2,0.1468493]
[1722469124549,3.14014608,3234.3,3234.2,0.1468493]
[1722469124777,4.10218863,3234.3,3234.2,0.1468493]
[1722469125160,4.10217982,3234.3,3234.2,0.1468493]
[1722469125497,5.27063879,3234.3,3234.2,0.1468493]
[1722469126184,7.07966358,3234.3,3234.2,0.1468493]
[1722469126385,12.44661358,3234.3,3234.2,0.1468493]
[1722469126683,17.37031704,3234.3,3234.2,0.1468493]
[1722469127190,12.35476358,3234.3,3234.2,0.1468493]
[1722469127554,15.44661358,3234.3,3234.2,0.1468493]
[1722469128052,17.37031704,3234.3,3234.2,0.1468493]
[1722469128275,15.44661358,3234.3,3234.2,0.1468493]
[1722469128489,15.99661358,3234.3,3234.2,0.1468493]
[1722469128907,17.91890609,3234.3,3234.2,0.1468493]
[1722469129272,15.99661358,3234.3,3234.2,0.1468493]
[1722469129709,16.91739865,3234.3,3234.2,0.1468493]
[1722469129874,14.99476358,3234.3,3234.2,0.1468493]
[1722469130778,18.08661358,3234.3,3234.2,0.1468493]
[1722469130977,18.63661358,3234.3,3234.2,0.1468493]
[1722469131220,19.17445268,3234.3,3234.2,0.1468493]
[1722469131395,18.63661358,3234.3,3234.2,0.1468493]
[1722469132000,19.1746441,3234.3,3234.2,0.1468493]
[1722469132207,18.63661358,3234.3,3234.2,0.1468493]
[1722469132710,21.41734239,3234.3,3234.2,0.1468493]
[1722469133289,19.17460474,3234.3,3234.2,0.1468493]
[1722469133515,18.63661358,3234.3,3234.2,0.1468493]
[1722469134098,24.50896611,3234.3,3234.2,0.1468493]
[1722469134325,22.26622846,3234.3,3234.2,0.1468493]
[1722469134527,19.17437846,3234.3,3234.2,0.1468493]
[1722469135855,22.26622846,3234.3,3234.2,0.1468493]
[1722469136039,19.17437846,3234.3,3234.2,0.1468493]
[1722469136654,21.41817245,3234.3,3234.2,0.1468493]
[1722469137146,19.17437846,3234.3,3234.2,0.1468493]
[1722469137350,23.71978601,3234.3,3234.2,0.1468493]
[1722469137509,22.26622846,3234.3,3234.2,0.1468493]
[1722469137714,23.71999031,3234.3,3234.2,0.1468493]
[1722469138156,22.26625538,3234.3,3234.2,0.1468493]
[1722469139216,19.17440538,3234.3,3234.2,0.1468493]
[1722469140048,22.26625538,3234.3,3234.2,0.1468493]
[1722469140257,23.71982116,3234.3,3234.2,0.1468493]
[1722469140589,22.26625538,3234.3,3234.2,0.1468493]
[1722469141266,19.17440538,3234.3,3234.2,0.1468493]
[1722469141420,22.26625538,3234.3,3234.2,0.1468493]
[1722469142264,24.50988669,3234.3,3234.2,0.1468493]
[1722469142468,21.41803669,3234.3,3234.2,0.1468493]
[1722469142785,21.5747347,3234.3,3234.2,0.1468493]
[1722469142940,18.9347347,3234.3,3234.2,0.1468493]
[1722469143140,21.5747347,3234.3,3234.2,0.1468493]
[1722469143369,21.57460435,3234.3,3234.2,0.1468493]
[1722469143753,19.33133326,3234.3,3234.2,0.1468493]
[1722469144996,21.57445229,3234.3,3234.2,0.1468493]
[1722469145649,24.66630229,3234.3,3234.2,0.1468493]
[1722469145852,21.57445229,3234.3,3234.2,0.1468493]
[1722469146259,22.42318326,3234.3,3234.2,0.1468493]
[1722469146596,19.33133326,3234.3,3234.2,0.1468493]
[1722469146746,22.42318326,3234.3,3234.2,0.1468493]
[1722469147494,23.87806521,3234.3,3234.2,0.1468493]
[1722469148044,3.09303,3233.1,3232.9,2.4798]
[1722469148284,1.00762715,3233.0,3232.9,2.4798]
[1722469149036,0.0467856,3233.0,3232.9,2.4798]
[1722469149205,0.0467856,3233.0,3232.9,2.72778]
[1722469149398,0.96084155,3233.1,3232.9,2.72778]
[1722469149584,0.0467856,3233.0,3232.9,2.72778]
[1722469150015,0.0467856,3233.0,3232.9,5.82097]
[1722469150400,4.05347155,3233.5,3232.9,5.82097]
[1722469150612,4.05347155,3233.5,3233.0,0.891424]
[1722469150889,4.05375487,3233.4,3233.0,0.891424]
[1722469151091,0.96103487,3233.3,3233.0,0.891424]
[1722469152187,0.04504105,3233.2,3233.0,0.891424]
[1722469152621,0.96103487,3233.4,3233.0,0.891424]
[1722469153103,0.04509251,3233.3,3233.0,0.891424]
[1722469154002,1.00612738,3233.3,3233.0,0.891424]
[1722469154809,0.96103487,3233.2,3233.0,0.891424]
[1722469155210,0.96103487,3233.4,3233.2,2.3163]
[1722469155437,0.96103487,3233.6,3233.2,2.3163]
[1722469155751,0.96103487,3233.6,3233.2,5.4092]
[1722469156515,0.96103487,3233.6,3233.2,2.3163]
[1722469156715,0.96103487,3233.6,3233.3,0.57463724]
[1722469157458,0.96103487,3233.5,3233.3,0.57463724]
[1722469157818,0.9614695,3233.5,3233.3,0.57463724]
[1722469158017,0.9614695,3233.6,3233.3,0.57463724]
[1722469160852,0.9614695,3233.6,3233.3,3.66738724]
[1722469161052,0.9614695,3233.6,3233.4,0.59836872]
[1722469161851,0.9614695,3233.6,3233.2,5.40918]
[1722469162618,0.9614695,3233.5,3233.2,5.40918]
[1722469163760,0.96295726,3233.5,3233.2,5.40918]
[1722469164130,1.28394302,3233.6,3233.2,5.40918]
[1722469164131,0.96295726,3233.3,3233.2,5.40918]
[1722469164331,0.96295726,3233.3,3233.2,6.29311624]
[1722469164745,1.28394302,3233.4,3233.2,6.29311624]
[1722469165038,1.28394302,3233.3,3233.2,2.3163]
[1722469165347,4.69765877,3233.4,3233.2,2.3163]
[1722469165669,1.60492877,3233.4,3233.2,2.3163]
[1722469165872,1.60609325,3233.4,3233.2,2.3163]
[1722469166073,1.2848746,3233.3,3233.2,2.3163]
[1722469166378,1.60609325,3233.4,3233.2,2.3163]
[1722469166536,1.28473773,3233.3,3233.2,2.3163]
[1722469166735,1.28473773,3233.3,3233.2,2.857224]
[1722469166949,1.28473773,3233.3,3233.2,2.3163]
[1722469167147,1.28473773,3233.3,3232.3,5.42027]
[1722469167148,3.09325,3232.9,3232.3,5.42027]
[1722469167369,0.96369114,3232.6,3232.3,2.3265]
[1722469167674,1.28492152,3232.5,3232.3,2.3265]
[1722469167875,1.32827796,3232.5,3232.3,2.3265]
[1722469168276,0.9636267,3232.4,3232.3,2.97893]
[1722469168640,1.0069058,3232.4,3232.3,2.97893]
[1722469168986,1.0069058,3232.4,3232.3,9.16647]
[1722469169134,0.0432791,3232.4,3232.3,9.16647]
[1722469170883,0.9636267,3232.5,3232.4,3.09367]
[1722469171185,3.09384,3232.3,3231.2,2.4316]
[1722469171490,3.09384,3232.3,3231.6,3.09438]
[1722469171491,0.96340178,3231.8,3231.6,3.09438]
[1722469171690,0.96340178,3231.8,3231.7,5.39964]
[1722469171901,0.96340178,3231.9,3231.7,5.39964]
[1722469172375,0.96340178,3231.8,3231.7,2.3053]
[1722469173175,0.96283859,3231.8,3231.7,2.3053]
[1722469173552,1.28378479,3231.9,3231.4,3.09459]
[1722469173769,0.9623553,3231.6,3231.4,3.09459]
[1722469173939,0.9623553,3231.6,3231.3,5.46472]
[1722469174139,1.28378479,3231.8,3231.3,5.46472]
[1722469174140,0.9623553,3231.8,3231.3,6.620682]
[1722469174556,0.9623553,3231.7,3231.3,6.620682]
[1722469174961,0.9623553,3231.9,3231.5,3.09453]
[1722469175484,0.9623553,3231.9,3231.6,3.09435]
[1722469175669,0.9623553,3232.0,3231.7,3.09434]
[1722469175864,0.9623553,3232.0,3231.8,3.09424]
[1722469176067,1.60473099,3232.3,3231.8,3.09424]
[1722469176068,0.9623553,3232.1,3231.8,3.09424]
[1722469177501,0.9623553,3232.2,3231.8,3.09424]
[1722469178083,0.9623553,3232.1,3231.9,3.09415]
[1722469178447,0.9623553,3232.2,3231.9,3.09415]
[1722469178781,0.9623553,3232.2,3232.0,2.3372]
[1722469178942,0.9623553,3232.3,3232.1,3.09389]
[1722469179285,1.28378479,3232.5,3232.2,3.09386]